bitfinex/quotes_BTCUSD_20251004
["timestamp","ask_amount","ask_price","bid_price","bid_amount"]
[1759605345856,0.00205,121800.0,121790.0,0.67041013]
[1759605346093,0.00205,121800.0,121790.0,0.67341013]
[1759605346265,0.16825361,121800.0,121790.0,0.67341013]
[1759605347326,0.17141361,121800.0,121790.0,0.58805013]
[1759605347543,0.17141361,121800.0,121790.0,0.67337013]
[1759605347704,0.17141361,121800.0,121790.0,0.58805013]
[1759605347883,0.17141361,121800.0,121790.0,0.67337013]
[1759605348098,0.16825361,121800.0,121790.0,0.67550013]
[1759605348322,0.00405,121800.0,121790.0,0.67859013]
[1759605349111,0.00405,121800.0,121790.0,0.67550013]
[1759605349300,0.16825361,121800.0,121790.0,0.67337013]
[1759605349502,0.16620361,121800.0,121790.0,0.67859013]
[1759605350129,0.16825361,121800.0,121790.0,0.67550013]
[1759605350330,0.16825361,121800.0,121790.0,0.67337013]
[1759605350770,0.16825361,121800.0,121790.0,0.67550013]
[1759605350982,0.16825361,121800.0,121790.0,0.67337013]
[1759605351815,0.16620361,121800.0,121790.0,0.67550013]
[1759605352031,0.16620361,121800.0,121790.0,0.67859013]
[1759605352687,0.16825361,121800.0,121790.0,0.67337013]
[1759605352914,0.17141361,121800.0,121790.0,0.67337013]
[1759605353804,0.16620361,121800.0,121790.0,0.67859013]
[1759605354349,0.16825361,121800.0,121790.0,0.67550013]
[1759605354546,0.16825361,121800.0,121790.0,0.67337013]
[1759605355375,0.16620361,121800.0,121790.0,0.67859013]
[1759605356235,0.16825361,121800.0,121790.0,0.67550013]
[1759605356443,0.16825361,121800.0,121790.0,0.67337013]
[1759605356764,0.002,121800.0,121790.0,0.67550013]
[1759605356972,0.002,121800.0,121790.0,0.67859013]
[1759605358603,0.16620361,121800.0,121790.0,0.67859013]
[1759605358995,0.16825361,121800.0,121790.0,0.67550013]
[1759605359415,0.16620361,121800.0,121790.0,0.67859013]
[1759605360065,0.16620361,121800.0,121790.0,0.67550013]
[1759605360295,0.16824361,121800.0,121790.0,0.67550013]
[1759605360506,0.16824361,121800.0,121790.0,0.67337013]
[1759605360684,0.17140361,121800.0,121790.0,0.67337013]
[1759605360962,0.16783515,121800.0,121790.0,0.67337013]
[1759605361174,0.16783515,121800.0,121790.0,0.67545013]
[1759605361595,0.16783515,121800.0,121790.0,0.67337013]
[1759605362010,0.17099515,121800.0,121790.0,0.67337013]
[1759605362457,0.16783515,121800.0,121790.0,0.67337013]
[1759605362687,0.00363154,121800.0,121790.0,0.67337013]
[1759605362897,0.00363154,121800.0,121790.0,0.67545013]
[1759605363324,0.00679154,121800.0,121790.0,0.67337013]
[1759605363943,0.16783515,121800.0,121790.0,0.67545013]
[1759605364568,0.16783515,121800.0,121790.0,0.67337013]
[1759605365532,0.17099515,121800.0,121790.0,0.67337013]
[1759605366977,0.16783515,121800.0,121790.0,0.67545013]
[1759605367216,0.16783515,121800.0,121790.0,0.67337013]
[1759605367427,0.00363154,121800.0,121790.0,0.67337013]
[1759605367626,0.00363154,121800.0,121790.0,0.67545013]
[1759605367843,0.00159154,121800.0,121790.0,0.67854013]
[1759605368458,0.00363154,121800.0,121790.0,0.67854013]
[1759605368669,0.00159154,121800.0,121790.0,0.67545013]
[1759605368906,0.00363154,121800.0,121790.0,0.67854013]
[1759605369114,0.00363154,121800.0,121790.0,0.67545013]
[1759605369331,0.00363154,121800.0,121790.0,0.67337013]
[1759605369779,0.00363154,121800.0,121790.0,0.67545013]
[1759605370109,0.00363154,121800.0,121790.0,0.67337013]
[1759605370322,0.00363154,121800.0,121790.0,0.67545013]
[1759605370526,0.00159154,121800.0,121790.0,0.67854013]
[1759605370721,0.00363154,121800.0,121790.0,0.67854013]
[1759605370929,0.00159154,121800.0,121790.0,0.67854013]
[1759605371130,0.00363154,121800.0,121790.0,0.67545013]
[1759605371333,0.00363154,121800.0,121790.0,0.67337013]
[1759605371770,0.00679154,121800.0,121790.0,0.67337013]
[1759605371921,0.00159154,121800.0,121790.0,0.67854013]
[1759605372125,0.00363154,121800.0,121790.0,0.67545013]
[1759605372347,0.16783515,121800.0,121790.0,0.67337013]
[1759605372718,0.17099515,121800.0,121790.0,0.67337013]
[1759605373123,0.16783515,121800.0,121790.0,0.67337013]
[1759605373262,0.00363154,121800.0,121790.0,0.67337013]
[1759605373465,0.16783515,121800.0,121790.0,0.67337013]
[1759605373724,0.00679154,121800.0,121790.0,0.67337013]
[1759605373920,0.16783515,121800.0,121790.0,0.67854013]
[1759605374273,0.16783515,121800.0,121790.0,0.67545013]
[1759605374628,0.16783515,121800.0,121790.0,0.67854013]
[1759605374629,0.16579515,121800.0,121790.0,0.67854013]
[1759605374867,0.00159154,121800.0,121790.0,0.67854013]
[1759605375478,0.00363154,121800.0,121790.0,0.67545013]
[1759605375637,0.16783515,121800.0,121790.0,0.67545013]
[1759605375820,0.16783515,121800.0,121790.0,0.67337013]
[1759605376036,0.16783515,121800.0,121790.0,0.67545013]
[1759605376286,0.16783515,121800.0,121790.0,0.67854013]
[1759605376511,0.16783515,121800.0,121790.0,0.67545013]
[1759605376743,0.00363154,121800.0,121790.0,0.67337013]
[1759605377202,0.16783515,121800.0,121790.0,0.67337013]
[1759605377806,0.17099515,121800.0,121790.0,0.67337013]
[1759605378444,0.16783515,121800.0,121790.0,0.35897013]
[1759605378653,0.16783515,121800.0,121790.0,0.67854013]
[1759605379145,0.16783515,121800.0,121790.0,0.67337013]
[1759605379355,0.17099515,121800.0,121790.0,0.67337013]
[1759605379718,0.16783515,121800.0,121790.0,0.67854013]
[1759605380111,0.16783515,121800.0,121790.0,0.67545013]
[1759605380469,0.16783515,121800.0,121790.0,0.67337013]
[1759605380760,0.16783515,121800.0,121790.0,0.67545013]
[1759605381451,0.16579515,121800.0,121790.0,0.67854013]
[1759605381859,0.17099515,121800.0,121790.0,0.67337013]
[1759605382986,0.16579515,121800.0,121790.0,0.67545013]
[1759605383217,0.16579515,121800.0,121790.0,0.67854013]
[1759605383416,0.16783515,121800.0,121790.0,0.67854013]
[1759605383619,0.16783515,121800.0,121790.0,0.67545013]
[1759605383863,0.16783515,121800.0,121790.0,0.67337013]
[1759605384318,0.17099515,121800.0,121790.0,0.67337013]
[1759605384491,0.16783515,121800.0,121790.0,0.67545013]
[1759605384704,0.16783515,121800.0,121790.0,0.67854013]
[1759605385155,0.16783515,121800.0,121790.0,0.67545013]
[1759605385591,0.16783515,121800.0,121790.0,0.67337013]
[1759605385801,0.16579515,121800.0,121790.0,0.67854013]
[1759605386354,0.16783515,121800.0,121790.0,0.67545013]
[1759605386575,0.16783515,121800.0,121790.0,0.67337013]
[1759605386980,0.16783515,121800.0,121790.0,0.67854013]
[1759605387178,0.16579515,121800.0,121790.0,0.67854013]
[1759605387387,0.16783515,121800.0,121790.0,0.67854013]
[1759605388265,0.16783515,121800.0,121790.0,0.67545013]
[1759605388480,0.16579515,121800.0,121790.0,0.67854013]
[1759605389203,0.16783515,121800.0,121790.0,0.67545013]
[1759605389410,0.16783515,121800.0,121790.0,0.67854013]
[1759605389560,0.16783515,121800.0,121790.0,0.67545013]
[1759605389747,0.16783515,121800.0,121790.0,0.67337013]
[1759605390595,0.16783515,121800.0,121790.0,0.67862013]
[1759605390796,0.16783515,121800.0,121790.0,0.67545013]
[1759605392722,0.16783515,121800.0,121790.0,0.67337013]
[1759605392951,0.16579515,121800.0,121790.0,0.67545013]
[1759605393162,0.16579515,121800.0,121790.0,0.67862013]
[1759605393878,0.16788515,121800.0,121790.0,0.67545013]
[1759605394430,0.16788515,121800.0,121790.0,0.67337013]
[1759605394842,0.16579515,121800.0,121790.0,0.67862013]
[1759605396292,0.16579515,121800.0,121790.0,0.67545013]
[1759605396445,0.16788515,121800.0,121790.0,0.67545013]
[1759605396863,0.16788515,121800.0,121790.0,0.67337013]
[1759605398140,0.16788515,121800.0,121790.0,0.67545013]
[1759605398597,0.16788515,121800.0,121790.0,0.67337013]
[1759605399064,0.16788515,121800.0,121790.0,0.67545013]
[1759605399277,0.16788515,121800.0,121790.0,0.67337013]
[1759605399501,0.17090515,121800.0,121790.0,0.67337013]
[1759605401508,0.16788515,121800.0,121790.0,0.67545013]
[1759605401886,0.16788515,121800.0,121790.0,0.67337013]
[1759605402358,0.17090515,121800.0,121790.0,0.67337013]
[1759605402661,0.16788515,121800.0,121790.0,0.67337013]
[1759605403180,0.17090515,121800.0,121790.0,0.67337013]
[1759605404049,0.16579515,121800.0,121790.0,0.67862013]
[1759605405013,0.16788515,121800.0,121790.0,0.67862013]
[1759605405216,0.16788515,121800.0,121790.0,0.67545013]
[1759605408327,0.16788515,121800.0,121790.0,0.67337013]
[1759605408881,0.16788515,121800.0,121790.0,0.67545013]
[1759605409500,0.16788515,121800.0,121790.0,0.35689013]
[1759605409709,0.17090515,121800.0,121790.0,0.67333013]
[1759605410260,0.16788515,121800.0,121790.0,0.67333013]
[1759605411076,0.16579515,121800.0,121790.0,0.67858013]
[1759605411506,0.16788515,121800.0,121790.0,0.67858013]
[1759605411892,0.16788515,121800.0,121790.0,0.67541013]
[1759605412249,0.16579515,121800.0,121790.0,0.67541013]
[1759605412439,0.16579515,121800.0,121790.0,0.67858013]
[1759605412630,0.16788515,121800.0,121790.0,0.67541013]
[1759605413046,0.16788515,121800.0,121790.0,0.67333013]
[1759605414964,0.16788515,121800.0,121790.0,0.67858013]
[1759605415101,0.16788515,121800.0,121790.0,0.67541013]
[1759605415514,0.17090515,121800.0,121790.0,0.67333013]
[1759605415899,0.16788515,121800.0,121790.0,0.67333013]
[1759605417700,0.16579515,121800.0,121790.0,0.67541013]
[1759605417902,0.16579515,121800.0,121790.0,0.67858013]
[1759605418210,0.16788515,121800.0,121790.0,0.67858013]
[1759605418727,0.16788515,121800.0,121790.0,0.67541013]
[1759605419291,0.16788515,121800.0,121790.0,0.67333013]
[1759605419740,0.16788515,121800.0,121790.0,0.67543013]
[1759605420856,0.16788515,121800.0,121790.0,0.62929713]
[1759605421349,0.17087515,121800.0,121790.0,0.62929713]
[1759605421772,0.16788515,121800.0,121790.0,0.62929713]
[1759605421975,0.16579515,121800.0,121790.0,0.63440713]
[1759605422536,0.16783515,121800.0,121790.0,0.63139713]
[1759605424430,0.17082515,121800.0,121790.0,0.62929713]
[1759605424769,0.16783515,121800.0,121790.0,0.63440713]
[1759605425373,0.16783515,121800.0,121790.0,0.63139713]
[1759605426609,0.16783515,121800.0,121790.0,0.63440713]
[1759605427122,0.16783515,121800.0,121790.0,0.63139713]
[1759605427982,0.16783515,121800.0,121790.0,0.63440713]
[1759605428641,0.16783515,121800.0,121790.0,0.63139713]
[1759605429886,0.16783515,121800.0,121790.0,0.63440713]
[1759605430179,0.16783515,121800.0,121790.0,0.63139713]
[1759605431506,0.16579515,121800.0,121790.0,0.63139713]
[1759605431727,0.16579515,121800.0,121790.0,0.63440713]
[1759605432291,0.16783515,121800.0,121790.0,0.63440713]
[1759605433378,0.16783515,121800.0,121790.0,0.62929713]
[1759605433689,0.16579515,121800.0,121790.0,0.63139713]
[1759605433914,0.16579515,121800.0,121790.0,0.63440713]
[1759605434761,0.16783515,121800.0,121790.0,0.63440713]
[1759605435042,0.20713101,121800.0,121790.0,0.10139688]
[1759605435311,0.20713101,121800.0,121790.0,0.06200166]
[1759605435569,0.20713101,121800.0,121790.0,0.23196166]
[1759605435916,0.23177467,121800.0,121790.0,0.23196166]
[1759605440226,0.23177467,121800.0,121790.0,0.17296]
[1759605440825,0.73596395,121800.0,121790.0,0.003]
[1759605441085,0.73596395,121800.0,121790.0,0.13188]
[1759605441305,0.23177467,121800.0,121790.0,0.13188]
[1759605442114,0.73596395,121800.0,121790.0,0.003]
[1759605442432,0.81908601,121800.0,121790.0,0.003]
[1759605443039,0.81749447,121800.0,121790.0,0.003]
[1759605443317,0.16421709,121790.0,121780.0,0.00054998]
[1759605443518,0.75262044,121790.0,121780.0,0.00059929]
[1759605443728,0.25346116,121790.0,121780.0,0.00059929]
[1759605444779,0.76465044,121790.0,121780.0,0.00059929]
[1759605445427,0.28510954,121790.0,121780.0,0.00059929]
[1759605445634,0.78929882,121790.0,121780.0,0.00059929]
[1759605445842,0.28510954,121790.0,121780.0,0.00059929]
[1759605446081,1.10358088,121790.0,121780.0,0.00059929]
[1759605446286,0.5993916,121790.0,121780.0,0.00059929]
[1759605447454,0.3682316,121790.0,121780.0,0.00059929]
[1759605447659,0.5993916,121790.0,121780.0,0.00059929]
[1759605448272,1.10358088,121790.0,121780.0,0.00059929]
[1759605449131,0.87242088,121790.0,121780.0,0.00059929]
[1759605449333,1.10358088,121790.0,121780.0,0.00059929]
[1759605456263,0.87242088,121790.0,121780.0,0.00059929]
[1759605456464,1.10358088,121790.0,121780.0,0.00059929]
[1759605457524,0.5993916,121790.0,121780.0,0.00059929]
[1759605457865,1.10358088,121790.0,121780.0,0.00059929]
[1759605458846,1.10362088,121790.0,121780.0,0.00059929]
[1759605460668,1.10197864,121790.0,121780.0,0.00059929]
[1759605465249,0.60546361,121790.0,121780.0,0.00059929]
[1759605465475,1.10965289,121790.0,121780.0,0.00059929]
[1759605475600,0.16424406,121770.0,121760.0,0.36623509]
[1759605475806,0.1971408,121770.0,121760.0,0.59743509]
[1759605476013,0.16940334,121770.0,121760.0,0.59743509]
[1759605476206,0.16640334,121770.0,121760.0,0.59743509]
[1759605476364,0.16640334,121770.0,121760.0,0.5980503]
[1759605476569,0.16640334,121770.0,121760.0,0.6001303]
[1759605476779,0.16529334,121770.0,121760.0,0.6073303]
[1759605476983,0.16740334,121770.0,121760.0,0.6041303]
[1759605477195,0.16740334,121770.0,121760.0,0.6020503]
[1759605477405,0.17040334,121770.0,121760.0,0.6020503]
[1759605478639,0.214644,121770.0,121760.0,0.6020503]
[1759605479165,0.211644,121770.0,121760.0,0.6020503]
[1759605479620,0.214644,121770.0,121760.0,0.6020503]
[1759605480318,0.209534,121770.0,121760.0,0.6072103]
[1759605480581,0.211624,121770.0,121760.0,0.6020503]
[1759605480825,0.209534,121770.0,121760.0,0.6072103]
[1759605481045,0.214814,121770.0,121760.0,0.6020503]
[1759605482008,0.17057334,121770.0,121760.0,0.6020503]
[1759605482309,0.16529334,121770.0,121760.0,0.6020503]
[1759605482634,0.16529334,121770.0,121760.0,0.6072103]
[1759605482866,0.16738334,121770.0,121760.0,0.6020503]
[1759605483088,0.17057334,121770.0,121760.0,0.6020503]
[1759605484078,0.21483099,121770.0,121760.0,0.6020503]
[1759605484632,0.21164099,121770.0,121760.0,0.6020503]
[1759605484869,0.21483099,121770.0,121760.0,0.6020503]
[1759605485046,0.16529334,121770.0,121760.0,0.6040803]
[1759605485327,0.16529334,121770.0,121760.0,0.6072103]
[1759605485546,0.16738334,121770.0,121760.0,0.66105196]
[1759605485734,0.17057334,121770.0,121760.0,0.66105196]
[1759605490982,0.16738334,121770.0,121760.0,0.66308196]
[1759605491190,0.16738334,121770.0,121760.0,0.66105196]
[1759605491492,0.17057334,121770.0,121760.0,0.66105196]
[1759605492663,0.16529334,121770.0,121760.0,0.66308196]
[1759605492823,0.16738334,121770.0,121760.0,0.43188196]
[1759605493033,0.16738334,121770.0,121760.0,0.66105196]
[1759605493236,0.17057334,121770.0,121760.0,0.66105196]
[1759605494605,0.17022727,121770.0,121760.0,0.66105196]
[1759605495372,0.16494727,121770.0,121760.0,0.66308196]
[1759605495620,0.16494727,121770.0,121760.0,0.66621196]
[1759605495833,0.16703727,121770.0,121760.0,0.66105196]
[1759605496283,0.17022727,121770.0,121760.0,0.66105196]
[1759605497430,0.16703727,121770.0,121760.0,0.66105196]
[1759605497916,0.17022727,121770.0,121760.0,0.66105196]
[1759605500218,0.16494727,121770.0,121760.0,0.66308196]
[1759605500411,0.16494727,121770.0,121760.0,0.66621196]
[1759605500550,0.16703727,121770.0,121760.0,0.66308196]
[1759605500758,0.16703727,121770.0,121760.0,0.66105196]
[1759605501175,0.17022727,121770.0,121760.0,0.66105196]
[1759605502556,0.16703727,121770.0,121760.0,0.66308196]
[1759605502816,0.16703727,121770.0,121760.0,0.66621196]
[1759605503055,0.16494727,121770.0,121760.0,0.66621196]
[1759605503260,0.16703727,121770.0,121760.0,0.66308196]
[1759605503463,0.16703727,121770.0,121760.0,0.66105196]
[1759605503778,0.17022727,121770.0,121760.0,0.66105196]
[1759605503984,0.16703727,121770.0,121760.0,0.66105196]
[1759605504439,0.17022727,121770.0,121760.0,0.66105196]
[1759605505185,0.16494727,121770.0,121760.0,0.66308196]
[1759605505446,0.16494727,121770.0,121760.0,0.66621196]
[1759605505667,0.16703727,121770.0,121760.0,0.66105196]
[1759605505868,0.16703727,121770.0,121760.0,0.66308196]
[1759605506074,0.16494727,121770.0,121760.0,0.66621196]
[1759605506289,0.16703727,121770.0,121760.0,0.66308196]
[1759605506529,0.16703727,121770.0,121760.0,0.66105196]
[1759605506771,0.16703727,121770.0,121760.0,0.66308196]
[1759605507009,0.16703727,121770.0,121760.0,0.66105196]
[1759605507259,0.17022727,121770.0,121760.0,0.66105196]
[1759605507881,0.16703727,121770.0,121760.0,0.66308196]
[1759605508077,0.16703727,121770.0,121760.0,0.66105196]
[1759605508926,0.16703727,121770.0,121760.0,0.66308196]
[1759605509223,0.16703727,121770.0,121760.0,0.66105196]
[1759605509639,0.17022727,121770.0,121760.0,0.66105196]
[1759605510284,0.16703727,121770.0,121760.0,0.66105196]
[1759605511000,0.17016727,121770.0,121760.0,0.66105196]
[1759605511202,0.16494727,121770.0,121760.0,0.66313196]
[1759605511356,0.16494727,121770.0,121760.0,0.66614196]
[1759605511715,0.16692727,121770.0,121760.0,0.66313196]
[1759605511929,0.16692727,121770.0,121760.0,0.66105196]
[1759605512443,0.17005727,121770.0,121760.0,0.66105196]
[1759605516901,0.19470785,121770.0,121760.0,0.66105196]
[1759605517100,0.18959785,121770.0,121760.0,0.66313196]
[1759605517280,0.18959785,121770.0,121760.0,0.66614196]
[1759605517488,0.19157785,121770.0,121760.0,0.66313196]
[1759605517694,0.19157785,121770.0,121760.0,0.66105196]
[1759605518380,0.18959785,121770.0,121760.0,0.66313196]
[1759605518593,0.18959785,121770.0,121760.0,0.66614196]
[1759605518807,0.19157785,121770.0,121760.0,0.66614196]
[1759605519017,0.19157785,121770.0,121760.0,0.66105196]
[1759605519218,0.19157785,121770.0,121760.0,0.66313196]
[1759605519735,0.19157785,121770.0,121760.0,0.66105196]
[1759605520153,0.19470785,121770.0,121760.0,0.66105196]
[1759605520802,0.19157785,121770.0,121760.0,0.66313196]
[1759605521015,0.18959785,121770.0,121760.0,0.66614196]
[1759605521641,0.19157785,121770.0,121760.0,0.66313196]
[1759605521839,0.19157785,121770.0,121760.0,0.66105196]
[1759605523740,0.19157785,121770.0,121760.0,0.66313196]
[1759605524078,0.18959785,121770.0,121760.0,0.66614196]
[1759605524205,0.19157785,121770.0,121760.0,0.66313196]
[1759605524435,0.19157785,121770.0,121760.0,0.66105196]
[1759605524830,0.18959785,121770.0,121760.0,0.66313196]
[1759605525034,0.18959785,121770.0,121760.0,0.66614196]
[1759605525247,0.19157785,121770.0,121760.0,0.66313196]
[1759605525640,0.19157785,121770.0,121760.0,0.66105196]
[1759605527383,0.19470785,121770.0,121760.0,0.66105196]
[1759605527922,0.19157785,121770.0,121760.0,0.66313196]
[1759605528319,0.19157785,121770.0,121760.0,0.66105196]
[1759605529014,0.19157785,121770.0,121760.0,0.66313196]
[1759605529389,0.19157785,121770.0,121760.0,0.66105196]
[1759605530296,0.19157785,121770.0,121760.0,0.66313196]
[1759605530637,0.19157785,121770.0,121760.0,0.66105196]
[1759605532851,0.19157785,121770.0,121760.0,0.66313196]
[1759605533365,0.19157785,121770.0,121760.0,0.66105196]
[1759605533499,0.19470785,121770.0,121760.0,0.66105196]
[1759605533851,0.19157785,121770.0,121760.0,0.66313196]
[1759605534307,0.19157785,121770.0,121760.0,0.66105196]
[1759605535403,0.19470785,121770.0,121760.0,0.66105196]
[1759605537096,0.19157785,121770.0,121760.0,0.66105196]
[1759605537615,0.19470785,121770.0,121760.0,0.66105196]
[1759605537797,0.19157785,121770.0,121760.0,0.66614196]
[1759605538015,0.19157785,121770.0,121760.0,0.66313196]
[1759605538230,0.19157785,121770.0,121760.0,0.66105196]
[1759605540070,0.19157785,121770.0,121760.0,0.66320196]
[1759605540581,0.19157785,121770.0,121760.0,0.66105196]
[1759605542479,0.18959785,121770.0,121760.0,0.66613196]
[1759605543919,0.19171785,121770.0,121760.0,0.66613196]
[1759605544184,0.19171785,121770.0,121760.0,0.66320196]
[1759605544542,0.19171785,121770.0,121760.0,0.66105196]
[1759605547632,0.18959785,121770.0,121760.0,0.66320196]
[1759605547831,0.18959785,121770.0,121760.0,0.66613196]
[1759605548220,0.19171785,121770.0,121760.0,0.66320196]
[1759605549220,0.19171785,121770.0,121760.0,0.66613196]
[1759605549449,0.19171785,121770.0,121760.0,0.66320196]
[1759605550060,0.18959785,121770.0,121760.0,0.66613196]
[1759605550613,0.19171785,121770.0,121760.0,0.66320196]
[1759605552337,0.19171785,121770.0,121760.0,0.66105196]
[1759605553511,0.19171785,121770.0,121760.0,0.42985196]
[1759605553716,0.19171785,121770.0,121760.0,0.66101196]
[1759605554570,0.19171785,121770.0,121760.0,0.66209196]
[1759605555035,0.19071785,121770.0,121760.0,0.66016196]
[1759605555233,0.19371785,121770.0,121760.0,0.66016196]
[1759605555519,0.2381449,121770.0,121760.0,0.66016196]
[1759605556516,0.2381449,121770.0,121760.0,0.65801196]
[1759605558644,0.2381449,121770.0,121760.0,0.66309196]
[1759605559132,0.2381449,121770.0,121760.0,0.66016196]
[1759605559382,0.2381449,121770.0,121760.0,0.65801196]
[1759605559615,0.2381449,121770.0,121760.0,0.66016196]
[1759605560251,0.2381449,121770.0,121760.0,0.66309196]
[1759605560546,0.2381449,121770.0,121760.0,0.66016196]
[1759605560747,0.2381449,121770.0,121760.0,0.65801196]
[1759605561173,0.19371785,121770.0,121760.0,0.66016196]
[1759605561386,0.19159785,121770.0,121760.0,0.66016196]
[1759605561586,0.19159785,121770.0,121760.0,0.66309196]
[1759605561923,0.19371785,121770.0,121760.0,0.66309196]
[1759605562362,0.19371785,121770.0,121760.0,0.66016196]
[1759605563007,0.19371785,121770.0,121760.0,0.66309196]
[1759605563505,0.19371785,121770.0,121760.0,0.66016196]
[1759605563915,0.19371785,121770.0,121760.0,0.66309196]
[1759605564338,0.19371785,121770.0,121760.0,0.65801196]
[1759605564562,0.19159785,121770.0,121760.0,0.66309196]
[1759605564879,0.2358129,121770.0,121760.0,0.66309196]
[1759605565030,0.2379329,121770.0,121760.0,0.66016196]
[1759605565242,0.2379329,121770.0,121760.0,0.66309196]
[1759605565426,0.2379329,121770.0,121760.0,0.66016196]
[1759605565765,0.19159785,121770.0,121760.0,0.66309196]
[1759605566319,0.19371785,121770.0,121760.0,0.66309196]
[1759605566436,0.19371785,121770.0,121760.0,0.66016196]
[1759605566661,0.19371785,121770.0,121760.0,0.66309196]
[1759605566963,0.19371785,121770.0,121760.0,0.66016196]
[1759605567390,0.19159785,121770.0,121760.0,0.66309196]
[1759605568161,0.19371785,121770.0,121760.0,0.66309196]
[1759605568359,0.19371785,121770.0,121760.0,0.66016196]
[1759605571095,0.19371785,121770.0,121760.0,0.65801196]
[1759605572122,0.19371785,121770.0,121760.0,0.66009196]
[1759605573570,0.19371785,121770.0,121760.0,0.66317196]
[1759605573796,0.19371785,121770.0,121760.0,0.66009196]
[1759605574124,0.19371785,121770.0,121760.0,0.65801196]
[1759605575342,0.19371785,121770.0,121760.0,0.66009196]
[1759605576192,0.19159785,121770.0,121760.0,0.66317196]
[1759605576966,0.19373785,121770.0,121760.0,0.66317196]
[1759605577147,0.19373785,121770.0,121760.0,0.66009196]
[1759605578165,0.19373785,121770.0,121760.0,0.65801196]
[1759605579428,0.19373785,121770.0,121760.0,0.66009196]
[1759605579782,0.19159785,121770.0,121760.0,0.66009196]
[1759605579994,0.19159785,121770.0,121760.0,0.66317196]
[1759605580428,0.19373785,121770.0,121760.0,0.66317196]
[1759605581041,0.19373785,121770.0,121760.0,0.66009196]
[1759605582431,0.19159785,121770.0,121760.0,0.66317196]
[1759605582938,0.19373785,121770.0,121760.0,0.66317196]
[1759605583115,0.19159785,121770.0,121760.0,0.66317196]
[1759605583868,0.19373785,121770.0,121760.0,0.66317196]
[1759605585192,0.19373785,121770.0,121760.0,0.66009196]
[1759605587026,0.19159785,121770.0,121760.0,0.66009196]
[1759605587328,0.19159785,121770.0,121760.0,0.66317196]
[1759605587532,0.19373785,121770.0,121760.0,0.66317196]
[1759605588150,0.19373785,121770.0,121760.0,0.66009196]
[1759605590103,0.19159785,121770.0,121760.0,0.66009196]
[1759605590318,0.19159785,121770.0,121760.0,0.66317196]
[1759605591575,0.19373785,121770.0,121760.0,0.66317196]
[1759605592665,0.19373785,121770.0,121760.0,0.66009196]
[1759605592844,0.19159785,121770.0,121760.0,0.66317196]
[1759605593652,0.19373785,121770.0,121760.0,0.66009196]
[1759605594749,0.19159785,121770.0,121760.0,0.66009196]
[1759605594953,0.19159785,121770.0,121760.0,0.66317196]
[1759605596613,0.19373785,121770.0,121760.0,0.66317196]
[1759605597114,0.19373785,121770.0,121760.0,0.66009196]
[1759605597669,0.19159785,121770.0,121760.0,0.66009196]
[1759605597878,0.19159785,121770.0,121760.0,0.66317196]
[1759605599488,0.19373785,121770.0,121760.0,0.66317196]
[1759605599700,0.19159785,121770.0,121760.0,0.66317196]
[1759605600584,0.19363785,121770.0,121760.0,0.66317196]
[1759605601595,0.19159785,121770.0,121760.0,0.66317196]
[1759605603733,0.00304928,121770.0,121760.0,0.76842785]
[1759605603976,0.00304928,121770.0,121760.0,1.32010742]
[1759605604185,0.00051391,121770.0,121760.0,1.32010742]
[1759605604395,0.00051391,121770.0,121760.0,6.37010742]
[1759605604595,0.00051391,121770.0,121760.0,6.39955767]
[1759605605016,0.00034495,121790.0,121780.0,0.16423057]
[1759605605248,0.00039426,121790.0,121780.0,0.74062324]
[1759605605451,0.00039426,121790.0,121780.0,0.74580324]
[1759605605597,0.00039426,121790.0,121780.0,0.6426514]
[1759605605797,0.00039426,121790.0,121780.0,0.66729386]
[1759605607231,0.00039426,121790.0,121780.0,0.67129386]
[1759605607876,0.00039426,121790.0,121780.0,1.04144576]
[1759605608107,0.00039426,121790.0,121780.0,6.09144576]
[1759605608847,0.00039426,121790.0,121780.0,6.02084699]
[1759605609481,0.00039426,121790.0,121780.0,6.01684699]
[1759605609929,0.00039426,121790.0,121780.0,6.02284699]
[1759605610520,0.00039426,121790.0,121780.0,6.023052]
[1759605610872,0.00039426,121790.0,121780.0,6.13020384]
[1759605611509,0.00017273,121790.0,121780.0,6.13020384]
[1759605612425,0.00017273,121790.0,121780.0,6.027052]
[1759605614197,0.00017273,121790.0,121780.0,6.10024768]
[1759605614812,2.322e-05,121790.0,121780.0,6.10024768]
[1759605615026,2.322e-05,121790.0,121780.0,6.027052]
[1759605615236,2.322e-05,121790.0,121780.0,6.10021442]
[1759605615870,2.322e-05,121790.0,121780.0,6.12521442]
[1759605616838,2.322e-05,121790.0,121780.0,6.052052]
[1759605617052,2.322e-05,121790.0,121780.0,5.735532]
[1759605617258,2.322e-05,121790.0,121780.0,6.393452]
[1759605617697,2.322e-05,121790.0,121780.0,6.49660384]
[1759605618154,2.322e-05,121790.0,121780.0,5.89900384]
[1759605618390,2.322e-05,121790.0,121780.0,6.10018611]
[1759605618602,2.322e-05,121790.0,121780.0,6.09126611]
[1759605618812,2.322e-05,121790.0,121780.0,5.77466611]
[1759605619007,2.322e-05,121790.0,121780.0,6.09926611]
[1759605619248,2.322e-05,121790.0,121780.0,6.10326611]
[1759605620482,2.322e-05,121790.0,121780.0,6.01790611]
[1759605620962,2.322e-05,121790.0,121780.0,6.10322611]
[1759605622237,2.322e-05,121790.0,121780.0,5.78666611]
[1759605622458,2.322e-05,121790.0,121780.0,6.10322611]
[1759605625527,2.322e-05,121790.0,121780.0,6.01790611]
[1759605625969,2.322e-05,121790.0,121780.0,6.10318611]
[1759605629214,2.322e-05,121790.0,121780.0,5.78666611]
[1759605629398,2.322e-05,121790.0,121780.0,6.10318611]
[1759605629609,2.322e-05,121790.0,121780.0,6.08718611]
[1759605629823,2.322e-05,121790.0,121780.0,6.09118611]
[1759605630031,2.322e-05,121790.0,121780.0,6.10318611]
[1759605630235,2.322e-05,121790.0,121780.0,6.09118611]
[1759605630445,2.322e-05,121790.0,121780.0,6.10318611]
[1759605631031,2.322e-05,121790.0,121780.0,6.09918611]
[1759605631228,2.322e-05,121790.0,121780.0,6.10318611]
[1759605631634,2.322e-05,121790.0,121780.0,5.78666611]
[1759605631861,0.00526322,121790.0,121780.0,5.33260371]
[1759605632051,0.16948031,121790.0,121780.0,0.43218892]
[1759605632265,0.16948031,121790.0,121780.0,0.66342892]
[1759605632467,0.16948031,121790.0,121780.0,0.65942892]
[1759605632666,0.16948031,121790.0,121780.0,0.51063835]
[1759605632944,0.16948031,121790.0,121780.0,0.25595835]
[1759605633156,0.16948031,121790.0,121780.0,0.17683629]
[1759605633361,0.16948031,121790.0,121780.0,0.09151629]
[1759605633574,0.16948031,121790.0,121780.0,0.40815629]
[1759605633770,0.16948031,121790.0,121780.0,0.34948747]
[1759605633895,0.16948031,121790.0,121780.0,0.26016747]
[1759605634125,0.16948031,121790.0,121780.0,0.34548747]
[1759605634327,0.17348031,121790.0,121780.0,0.40415629]
[1759605635171,0.17348031,121790.0,121780.0,0.34548747]
[1759605636889,0.17348031,121790.0,121780.0,0.32084501]
[1759605646360,0.17348031,121790.0,121780.0,0.00420501]
[1759605646560,0.17348031,121790.0,121780.0,0.23552501]
[1759605648971,0.16423057,121780.0,121770.0,0.48343446]
[1759605649165,0.16637057,121780.0,121770.0,0.48343446]
[1759605649374,0.16637057,121780.0,121770.0,0.48363954]